fUSD/lending_fUSD_20240329
["ID","MTS","AMOUNT","RATE_DAILY","PERIOD"]
[320915875,1711707074219,-506.9424178,0.00049589,120]
[320915876,1711707074228,-500.0,0.00049589,120]
[320915877,1711707074237,-500.0,0.00049589,120]
[320915878,1711707074247,-501.76876804,0.00049589,120]
[320915879,1711707074255,-514.29348003,0.00049589,120]
[320915880,1711707074264,-500.0,0.00049589,7]
[320915881,1711707074274,-500.0,0.00049589,120]
[320915882,1711707074283,-500.0,0.00049589,120]
[320915883,1711707074292,-500.0,0.00049589,120]
[320915884,1711707074301,-500.0,0.00049589,120]
[320915885,1711707074311,-500.0,0.00049589,120]
[320915886,1711707074320,-500.0,0.00049589,120]
[320915887,1711707074329,-568.76,0.00049589,120]
[320915888,1711707074338,-599.15,0.00049589,120]
[320915889,1711707074348,-512.37894056,0.00049589,120]
[320915890,1711707074359,-500.0,0.00049589,120]
[320915891,1711707074368,-512.26995925,0.00049589,120]
[320915892,1711707074377,-500.0,0.00049589,120]
[320915893,1711707074386,-624.26,0.00049589,120]
[320915894,1711707074396,-500.0,0.00049589,120]
[320915895,1711707074406,-500.0,0.00049589,120]
[320915896,1711707074415,-526.7555194,0.00049589,120]
[320915897,1711707074424,-500.0,0.00049589,120]
[320915898,1711707074434,-500.0,0.00049589,120]
[320915899,1711707074443,-500.0,0.00049589,120]
[320915900,1711707074452,-500.0,0.00049589,120]
[320915901,1711707074462,-525.70540398,0.00049589,120]
[320915902,1711707074471,-1000.86500759,0.00049589,120]
[320915903,1711707074480,-500.0,0.00049589,120]
[320915904,1711707074489,-524.98685157,0.00049589,120]
[320915905,1711707074498,-610.6149107,0.00049589,120]
[320915906,1711707074508,-500.0,0.00049589,120]
[320915907,1711707074517,-500.0,0.00049589,120]
[320915908,1711707074527,-500.0,0.00049589,120]
[320915909,1711707074537,-536.98662852,0.00049589,120]
[320915910,1711707074546,-500.0,0.00049589,120]
[320915911,1711707074556,-500.0,0.00049589,120]
[320915912,1711707074565,-500.0,0.00049589,120]
[320915913,1711707074574,-500.0,0.00049589,120]
[320915914,1711707074584,-500.0,0.00049589,120]
[320915915,1711707074593,-500.0,0.00049589,120]
[320915916,1711707074602,-500.0,0.00049589,120]
[320915917,1711707074615,-500.0,0.00049589,120]
[320915918,1711707074625,-511.389548,0.00049589,120]
[320915919,1711707074637,-151.0,0.00049589,120]
[320915920,1711707074646,-500.0,0.00049589,120]
[320915921,1711707074656,-500.0,0.00049589,120]
[320915922,1711707074666,-500.0,0.00049589,120]
[320915923,1711707074677,-597.70463518,0.00049589,120]
[320915924,1711707074686,-500.0,0.00049589,120]
[320915925,1711707074695,-500.0,0.00049589,120]
[320915926,1711707074705,-500.0,0.00049589,120]
[320915927,1711707074714,-500.0,0.00049589,120]
[320915928,1711707074724,-500.0,0.00049589,120]
[320915929,1711707074734,-500.0,0.00049589,120]
[320915930,1711707074743,-500.0,0.00049589,30]
[320915931,1711707074752,-500.0,0.00049589,120]
[320915932,1711707074762,-500.0,0.00049589,120]
[320915933,1711707074770,-500.0,0.00049589,120]
[320915934,1711707074780,-500.0,0.00049589,120]
[320915935,1711707074789,-500.0,0.00049589,120]
[320915936,1711707074798,-500.0,0.00049589,120]
[320915937,1711707074807,-500.0,0.00049589,120]
[320915938,1711707074816,-500.0,0.00049589,120]
[320915939,1711707074826,-500.0,0.00049589,120]
[320915940,1711707074835,-519.83653606,0.00049589,120]
[320915941,1711707074846,-500.0,0.00049589,120]
[320915942,1711707074855,-500.0,0.00049589,120]
[320915943,1711707074866,-512.11999951,0.00049589,120]
[320915944,1711707074875,-500.0,0.00049589,120]
[320915945,1711707074884,-500.0,0.00049589,120]
[320915946,1711707074893,-500.0,0.00049589,120]
[320915947,1711707074903,-508.80100631,0.00049589,120]
[320915948,1711707074912,-500.0,0.00049589,120]
[320915949,1711707074922,-500.0,0.00049589,120]
[320915950,1711707074932,-500.0,0.00049589,120]
[320915951,1711707074941,-500.0,0.00049589,120]
[320915952,1711707074950,-509.93462254,0.00049589,120]
[320915953,1711707075096,-500.0,0.00049589,120]
[320915954,1711707075123,-500.0,0.00049589,120]
[320915955,1711707075132,-500.0,0.00049589,120]
[320915956,1711707075141,-507.10478205,0.00049589,120]
[320915957,1711707075151,-505.49080389,0.00049589,120]
[320915958,1711707075160,-508.55264241,0.00049589,120]
[320915959,1711707075170,-500.0,0.00049589,120]
[320915960,1711707075179,-150.0,0.00049589,120]
[320915961,1711707075189,-500.0,0.00049589,120]
[320915962,1711707075198,-506.91664115,0.00049589,120]
[320915963,1711707075208,-500.0,0.00049589,120]
[320915964,1711707075218,-511.80342721,0.00049589,120]
[320915965,1711707075228,-500.0,0.00049589,120]
[320915966,1711707075237,-500.0,0.00049589,120]
[320915967,1711707075247,-500.0,0.00049589,120]
[320915968,1711707075257,-504.71,0.00049589,120]
[320915969,1711707075267,-500.0,0.00049589,120]
[320915970,1711707075277,-314.12203027,0.00049589,120]
[320915971,1711707075287,-500.0,0.00049589,120]
[320915972,1711707075296,-500.0,0.00049589,120]
[320915973,1711707075306,-500.0,0.00049589,120]
[320915974,1711707075315,-500.0,0.00049589,120]
[320915975,1711707075325,-525.41322371,0.00049589,120]
[320915976,1711707075335,-500.0,0.00049589,120]
[320915977,1711707075345,-500.0,0.00049589,120]
[320915978,1711707075354,-500.0,0.00049589,120]
[320915979,1711707075366,-500.0,0.00049589,120]
[320915980,1711707075375,-503.55170573,0.00049589,120]
[320915981,1711707075384,-500.0,0.00049589,120]
[320915982,1711707075393,-500.0,0.00049589,120]
[320915983,1711707075403,-500.0,0.00049589,120]
[320915984,1711707075413,-601.94,0.00049589,120]
[320915985,1711707075422,-500.0,0.00049589,120]
[320915986,1711707075431,-166.596819,0.00049589,120]
[320915987,1711707075440,-555.93,0.00049589,120]
[320915988,1711707075451,-500.0,0.00049589,120]
[320915989,1711707075461,-500.0,0.00049589,120]
[320915990,1711707075470,-500.0,0.00049589,120]
[320915991,1711707075480,-500.0,0.00049589,120]
[320915992,1711707075489,-166.596815,0.00049589,120]
[320915993,1711707075498,-500.0,0.00049589,120]
[320915994,1711707075507,-502.73296706,0.00049589,120]
[320915995,1711707075516,-500.0,0.00049589,120]
[320915996,1711707075526,-533.24819629,0.00049589,120]
[320915997,1711707075535,-500.0,0.00049589,120]
[320915998,1711707075545,-500.0,0.00049589,120]
[320915999,1711707075554,-500.0,0.00049589,120]
[320916000,1711707075563,-500.0,0.00049589,120]
[320916001,1711707075573,-538.24816558,0.00049589,120]
[320916002,1711707075582,-500.0,0.00049589,120]
[320916003,1711707075591,-500.0,0.00049589,120]
[320916004,1711707075601,-500.0,0.00049589,120]
[320916005,1711707075612,-500.0,0.00049589,120]
[320916006,1711707075621,-500.0,0.00049589,120]
[320916007,1711707075632,-500.0,0.00049589,120]
[320916008,1711707075643,-500.0,0.00049589,120]
[320916009,1711707075656,-500.0,0.00049589,120]
[320916010,1711707075666,-500.0,0.00049589,120]
[320916011,1711707075676,-184.975145,0.00049589,120]
[320916012,1711707075687,-500.0,0.00049589,120]
[320916013,1711707075698,-500.0,0.00049589,120]
[320916014,1711707075707,-338.451677,0.00049589,120]
[320916015,1711707075718,-528.52931461,0.00049589,120]
[320916016,1711707075729,-517.68995799,0.00049589,120]
[320916017,1711707075739,-523.54463904,0.00049589,120]
[320916018,1711707075748,-500.0,0.00049589,120]
[320916019,1711707075758,-500.0,0.00049589,120]
[320916020,1711707075767,-500.0,0.00049589,120]
[320916021,1711707075777,-338.451671,0.00049589,120]
[320916022,1711707075786,-184.975151,0.00049589,120]
[320916023,1711707075796,-500.0,0.00049589,120]
[320916024,1711707075805,-500.0,0.00049589,120]
[320916025,1711707075815,-500.0,0.00049589,120]
[320916026,1711707075825,-500.0,0.00049589,120]
[320916027,1711707075834,-207.535473,0.00049589,120]
[320916028,1711707075845,-500.0,0.00049589,120]
[320916029,1711707075857,-500.0,0.00049589,120]
[320916030,1711707075869,-500.0,0.00049589,120]
[320916031,1711707075879,-520.34220018,0.00049589,120]
[320916032,1711707075889,-496.82313694,0.00049589,120]
[320916033,1711707075899,-207.535479,0.00049589,120]
[320916034,1711707075908,-500.0,0.00049589,120]
[320916035,1711707075918,-680.59,0.00049589,120]
[320916036,1711707075929,-500.0,0.00049589,120]
[320916037,1711707075938,-500.0,0.00049589,120]
[320916038,1711707075948,-500.0,0.00049589,120]
[320916039,1711707075957,-500.0,0.00049589,120]
[320916040,1711707075967,-525.35679904,0.00049589,120]
[320916041,1711707075978,-500.0,0.00049589,120]
[320916042,1711707075988,-500.0,0.00049589,120]
[320916043,1711707075997,-744.88,0.00049589,2]
[320916044,1711707076007,-236.53551335,0.00049589,120]
[320916045,1711707076017,-500.0,0.00049589,120]
[320916046,1711707076027,-500.0,0.00049589,120]
[320916047,1711707076037,-500.0,0.00049589,120]
[320916048,1711707076047,-316.08770055,0.00049589,120]
[320916049,1711707076056,-500.0,0.00049589,120]
[320916050,1711707076065,-851.59,0.00049589,120]
[320916051,1711707076076,-500.0,0.00049589,120]
[320916052,1711707076086,-500.0,0.00049589,120]
[320916053,1711707076095,-500.0,0.00049589,120]
[320916054,1711707076105,-439.585283,0.00049589,120]
[320916055,1711707076116,-500.0,0.00049589,120]
[320916056,1711707076125,-481.15520961,0.00049589,120]
[320916057,1711707076135,-439.58529,0.00049589,120]
[320916058,1711707076144,-500.0,0.00049589,120]
[320916059,1711707076154,-500.0,0.00049589,120]
[320916060,1711707076163,-151.0,0.00049589,120]
[320916061,1711707076173,-745.86,0.00049589,120]
[320916062,1711707076182,-500.0,0.00049589,120]
[320916063,1711707076192,-500.0,0.00049589,120]
[320916064,1711707076202,-516.09871805,0.00049589,120]
[320916065,1711707076211,-500.0,0.00049589,120]
[320916066,1711707076220,-503.76573365,0.00049589,120]
[320916067,1711707076229,-500.0,0.00049589,120]
[320916068,1711707076240,-520.70971369,0.00049589,120]
[320916069,1711707076250,-250.08,0.00049589,120]
[320916070,1711707076259,-500.0,0.00049589,120]
[320916071,1711707076269,-500.0,0.00049589,120]
[320916072,1711707076278,-500.0,0.00049589,120]
[320916073,1711707076288,-500.0,0.00049589,120]
[320916074,1711707076297,-500.0,0.00049589,2]
[320916075,1711707076306,-500.0,0.00049589,120]
[320916076,1711707076316,-525.25053898,0.00049589,120]
[320916077,1711707076325,-519.60379018,0.00049589,120]
[320916078,1711707076334,-506.13676718,0.00049589,120]
[320916079,1711707076344,-517.41157336,0.00049589,120]
[320916080,1711707076354,-537.41,0.00049589,120]
[320916081,1711707076364,-500.0,0.00049589,120]
[320916082,1711707076374,-500.0,0.00049589,120]
[320916083,1711707076383,-529.27550242,0.00049589,120]
[320916084,1711707076393,-525.14698112,0.00049589,120]
[320916085,1711707076402,-250.98034739,0.00049589,120]
[320916086,1711707076411,-500.0,0.00049589,120]
[320916087,1711707076421,-500.0,0.00049589,120]
[320916088,1711707076430,-500.0,0.00049589,120]
[320916089,1711707076440,-532.98,0.00049589,120]
[320916090,1711707076449,-500.0,0.00049589,120]
[320916091,1711707076458,-500.0,0.00049589,120]
[320916092,1711707076468,-500.0,0.00049589,120]
[320916093,1711707076478,-269.404899,0.00049589,60]
[320916094,1711707076487,-500.0,0.00049589,120]
[320916095,1711707076497,-550.41281216,0.00049589,120]
[320916096,1711707076507,-505.05309744,0.00049589,120]
[320916097,1711707076516,-269.404903,0.00049589,60]
[320916098,1711707076525,-504.53132655,0.00049589,120]
[320916099,1711707076534,-500.0,0.00049589,120]
[320916100,1711707076543,-500.0,0.00049589,120]
[320916101,1711707076553,-151.0,0.00049589,120]
[320916102,1711707076562,-1156.54,0.00049589,120]
[320916103,1711707076572,-500.0,0.00049589,120]
[320916104,1711707076581,-500.0,0.00049589,120]
[320916105,1711707076592,-500.0,0.00049589,120]
[320916106,1711707076601,-500.0,0.00049589,120]
[320916107,1711707076613,-500.0,0.00049589,120]
[320916108,1711707076623,-519.44674742,0.00049589,120]
[320916109,1711707076635,-500.0,0.00049589,120]
[320916110,1711707076645,-560.33156872,0.00049589,120]
[320916111,1711707076655,-511.3127217,0.00049589,120]
[320916112,1711707076666,-500.0,0.00049589,120]
[320916113,1711707076678,-500.0,0.00049589,120]
[320916114,1711707076687,-520.89847216,0.00049589,120]
[320916115,1711707076697,-500.0,0.00049589,120]
[320916116,1711707076706,-500.0,0.00049589,120]
[320916117,1711707076718,-500.0,0.00049589,120]
[320916118,1711707076727,-500.0,0.00049589,120]
[320916119,1711707076737,-500.0,0.00049589,120]
[320916120,1711707076747,-500.0,0.00049589,120]
[320916121,1711707076756,-500.0,0.00049589,120]
[320916122,1711707076765,-543.87347734,0.00049589,120]
[320916123,1711707076775,-512.91193217,0.00049589,120]
[320916124,1711707076785,-506.22272391,0.00049589,120]
[320916125,1711707076795,-500.0,0.00049589,120]
[320916126,1711707076804,-500.0,0.00049589,30]
[320916127,1711707076814,-509.43993509,0.00049589,120]
[320916128,1711707076823,-500.0,0.00049589,120]
[320916129,1711707076833,-500.0,0.00049589,120]
[320916130,1711707076843,-592.42,0.00049589,120]
[320916131,1711707076852,-500.0,0.00049589,120]
[320916132,1711707076862,-500.0,0.00049589,120]
[320916133,1711707076872,-505.07762792,0.00049589,120]
[320916134,1711707076881,-500.0,0.00049589,120]
[320916135,1711707076891,-151.0,0.00049589,120]
[320916136,1711707076900,-500.0,0.00049589,120]
[320916137,1711707076909,-500.0,0.00049589,120]
[320916138,1711707076918,-722.38,0.00049589,120]
[320916139,1711707076927,-500.0,0.00049589,120]
[320916140,1711707076938,-500.0,0.00049589,120]
[320916141,1711707076947,-500.0,0.00049589,120]
[320916142,1711707076956,-500.0,0.00049589,120]
[320916143,1711707076966,-500.0,0.00049589,120]
[320916144,1711707076975,-500.0,0.00049589,120]
[320916145,1711707076984,-500.0,0.00049589,120]
[320916146,1711707076994,-500.0,0.00049589,120]
[320916147,1711707077003,-516.78539261,0.00049589,120]
[320916148,1711707077012,-217.46855225,0.00049589,120]
[320916149,1711707077021,-500.0,0.00049589,120]
[320916150,1711707077030,-505.53055994,0.00049589,120]
[320916151,1711707077040,-643.720408,0.00049589,120]
[320916152,1711707077049,-500.0,0.00049589,120]
[320916153,1711707077058,-500.0,0.00049589,120]
[320916154,1711707077067,-509.70257045,0.00049589,120]
[320916155,1711707077076,-540.35,0.00049589,120]
[320916156,1711707077085,-500.0,0.00049589,120]
[320916157,1711707077095,-500.0,0.00049589,120]
[320916158,1711707077104,-500.0,0.00049589,120]
[320916159,1711707077114,-500.0,0.00049589,120]
[320916160,1711707077123,-500.0,0.00049589,120]
[320916161,1711707077132,-500.0,0.00049589,120]
[320916162,1711707077141,-500.0,0.00049589,120]
[320916163,1711707077150,-500.0,0.00049589,120]
[320916164,1711707077160,-500.0,0.00049589,120]
[320916165,1711707077169,-500.0,0.00049589,120]
[320916166,1711707077178,-500.0,0.00049589,120]
[320916167,1711707077187,-557.18,0.00049589,120]
[320916168,1711707077196,-500.0,0.00049589,120]
[320916169,1711707077205,-500.0,0.00049589,120]
[320916170,1711707077215,-500.0,0.00049589,120]
[320916171,1711707077225,-500.0,0.00049589,120]
[320916172,1711707077234,-500.0,0.00049589,120]
[320916173,1711707077243,-500.0,0.00049589,120]
[320916174,1711707077253,-500.0,0.00049589,120]
[320916175,1711707077262,-151.0,0.00049589,120]
[320916176,1711707077271,-500.0,0.00049589,120]
[320916177,1711707077281,-500.0,0.00049589,120]
[320916178,1711707077290,-500.0,0.00049589,120]
[320916179,1711707077300,-500.0,0.00049589,120]
[320916180,1711707077309,-500.0,0.00049589,120]
[320916181,1711707077318,-500.0,0.00049589,120]
[320916182,1711707077327,-500.0,0.00049589,120]
[320916183,1711707077337,-500.0,0.00049589,120]
[320916184,1711707077347,-500.0,0.00049589,120]
[320916185,1711707077357,-500.0,0.00049589,120]
[320916186,1711707077369,-500.0,0.00049589,120]
[320916187,1711707077379,-529.06877694,0.00049589,120]
[320916188,1711707077389,-500.0,0.00049589,120]
[320916189,1711707077400,-500.0,0.00049589,120]
[320916190,1711707077409,-580.74,0.00049589,120]
[320916191,1711707077418,-500.0,0.00049589,120]
[320916192,1711707077428,-522.66805747,0.00049589,120]
[320916193,1711707077438,-500.0,0.00049589,120]
[320916194,1711707077448,-500.0,0.00049589,120]
[320916195,1711707077458,-500.0,0.00049589,120]
[320916196,1711707077468,-500.0,0.00049589,120]
[320916197,1711707077478,-503.37990773,0.00049589,120]
[320916198,1711707077489,-500.0,0.00049589,120]
[320916199,1711707077633,-510.93153968,0.00049589,120]
[320916200,1711707077644,-348.66011011,0.00049589,120]
[320916201,1711707077654,-1538.82,0.00049589,120]
[320916202,1711707077664,-500.0,0.00049589,120]
[320916203,1711707077673,-509.43552483,0.00049589,120]
[320916204,1711707077685,-500.0,0.00049589,120]
[320916205,1711707077695,-500.0,0.00049589,120]
[320916206,1711707077704,-500.0,0.00049589,120]
[320916207,1711707077713,-500.0,0.00049589,120]
[320916208,1711707077722,-733.58,0.00049589,120]
[320916209,1711707077731,-500.0,0.00049589,120]
[320916210,1711707077741,-500.0,0.00049589,120]
[320916211,1711707077751,-500.0,0.00049589,120]
[320916212,1711707077761,-164.48325708,0.00049589,120]
[320916213,1711707077770,-500.0,0.00049589,120]
[320916214,1711707077779,-1281.65,0.00049589,120]
[320916215,1711707077789,-500.0,0.00049589,120]
[320916216,1711707077799,-586.62,0.00049589,120]
[320916217,1711707077809,-251.991956,0.00049589,120]
[320916218,1711707077818,-500.0,0.00049589,120]
[320916219,1711707077828,-500.0,0.00049589,120]
[320916220,1711707077837,-1120.28,0.00049589,120]
[320916221,1711707077847,-500.0,0.00049589,120]
[320916222,1711707077856,-538.85551449,0.00049589,120]
[320916223,1711707077868,-251.991957,0.00049589,120]
[320916224,1711707077877,-531.01404384,0.00049589,120]
[320916225,1711707077888,-500.0,0.00049589,120]
[320916226,1711707077897,-500.0,0.00049589,120]
[320916227,1711707077906,-599.93,0.00049589,120]
[320916228,1711707077917,-500.0,0.00049589,120]
[320916229,1711707077926,-541.13804112,0.00049589,120]
[320916230,1711707077935,-1317.16,0.00049589,120]
[320916231,1711707077946,-4410.4,0.00049589,120]
[320916232,1711707077955,-1495.55,0.00049589,120]
[320916233,1711707077965,-500.0,0.00049589,120]
[320916234,1711707077975,-504.48952278,0.00049589,120]
[320916235,1711707077985,-21196.2,0.00049589,120]
[320916236,1711707077994,-500.0,0.00049589,120]
[320916237,1711707078004,-500.0,0.00049589,120]
[320916238,1711707078013,-500.0,0.00049589,120]
[320916239,1711707078022,-500.0,0.00049589,120]
[320916240,1711707078032,-1227.73,0.00049589,120]
[320916241,1711707078042,-500.0,0.00049589,120]
[320916242,1711707078052,-500.0,0.00049589,7]
[320916243,1711707078062,-500.0,0.00049589,120]
[320916244,1711707078071,-437.883612,0.00049589,120]
[320916245,1711707078081,-1229.95,0.00049589,120]
[320916246,1711707078091,-500.0,0.00049589,120]
[320916247,1711707078101,-520.63737762,0.00049589,120]
[320916248,1711707078112,-500.0,0.00049589,120]
[320916249,1711707078122,-437.883605,0.00049589,120]
[320916250,1711707078132,-500.0,0.00049589,120]
[320916251,1711707078142,-527.47167903,0.00049589,120]
[320916252,1711707078152,-500.0,0.00049589,120]
[320916253,1711707078161,-417.27237832,0.00049589,120]
[320916254,1711707078171,-500.0,0.00049589,120]
[320916255,1711707078181,-500.0,0.00049589,120]
[320916256,1711707078190,-1803.39,0.00049589,120]
[320916257,1711707078199,-1577.81,0.00049589,120]
[320916258,1711707078208,-1060.45,0.00049589,120]
[320916259,1711707078218,-500.0,0.00049589,120]
[320916260,1711707078228,-531.48936547,0.00049589,120]
[320916261,1711707078238,-500.0,0.00049589,120]
[320916262,1711707078248,-500.0,0.00049589,120]
[320916263,1711707078258,-254.3631597,0.00049589,120]
[320916264,1711707078268,-500.0,0.00049589,120]
[320916265,1711707078279,-500.0,0.00049589,120]
[320916266,1711707078289,-9587.95,0.00049589,120]
[320916267,1711707078299,-860.13,0.00049589,120]
[320916268,1711707078309,-500.0,0.00049589,120]
[320916269,1711707078319,-500.0,0.00049589,120]
[320916270,1711707078329,-2161.78,0.00049589,120]
[320916271,1711707078338,-966.69,0.00049589,120]
[320916272,1711707078349,-500.0,0.00049589,120]
[320916273,1711707078359,-500.0,0.00049589,120]
[320916274,1711707078370,-500.0,0.00049589,120]
[320916275,1711707078379,-520.10760787,0.00049589,120]
[320916276,1711707078389,-500.0,0.00049589,120]
[320916277,1711707078398,-1285.99,0.00049589,120]
[320916278,1711707078408,-500.0,0.00049589,120]
[320916279,1711707078418,-500.0,0.00049589,120]
[320916280,1711707078428,-4270.37,0.00049589,120]
[320916281,1711707078437,-1701.83,0.00049589,120]
[320916282,1711707078446,-534.62915959,0.00049589,120]
[320916283,1711707078455,-493.36088967,0.00049589,120]
[320916284,1711707078464,-500.0,0.00049589,120]
[320916285,1711707078473,-542.49,0.00049589,120]
[320916286,1711707078482,-322.132599,0.00049589,120]
[320916287,1711707078491,-500.0,0.00049589,120]
[320916288,1711707078500,-322.132595,0.00049589,120]
[320916289,1711707078510,-2656.93,0.00049589,120]
[320916290,1711707078519,-1021.55,0.00049589,120]
[320916291,1711707078529,-500.0,0.00049589,120]
[320916292,1711707078539,-944.56,0.00049589,120]
[320916293,1711707078549,-500.0,0.00049589,120]
[320916294,1711707078558,-1033.6,0.00049589,120]
[320916295,1711707078567,-2596.43,0.00049589,120]
[320916296,1711707078577,-815.59,0.00049589,120]
[320916297,1711707078587,-500.0,0.00049589,120]
[320916298,1711707078597,-500.0,0.00049589,120]
[320916299,1711707078606,-500.0,0.00049589,120]
[320916300,1711707078616,-151.0,0.00049589,120]
[320916301,1711707078625,-868.76,0.00049589,120]
[320916302,1711707078636,-511.16799665,0.00049589,120]
[320916303,1711707078646,-649.47,0.00049589,120]
[320916304,1711707078657,-1186.75,0.00049589,120]
[320916305,1711707078667,-1617.32,0.00049589,120]
[320916306,1711707078676,-559.45769547,0.00049589,120]
[320916307,1711707078686,-696.46,0.00049589,120]
[320916308,1711707078695,-582.24,0.00049589,120]
[320916309,1711707078704,-926.41,0.00049589,120]
[320916310,1711707078714,-500.0,0.00049589,120]
[320916311,1711707078723,-511.07363666,0.00049589,120]
[320916312,1711707078734,-500.0,0.00049589,120]
[320916313,1711707078743,-500.0,0.00049589,120]
[320916314,1711707078752,-500.0,0.00049589,120]
[320916315,1711707078762,-695.54,0.00049589,120]
[320916316,1711707078771,-614.07,0.00049589,120]
[320916317,1711707078780,-151.0,0.00049589,120]
[320916318,1711707078789,-1345.46,0.00049589,120]
[320916319,1711707078799,-3650.97,0.00049589,120]
[320916320,1711707078809,-1899.41,0.00049589,120]
[320916321,1711707078820,-500.0,0.00049589,120]
[320916322,1711707078831,-500.0,0.00049589,120]
[320916323,1711707078840,-500.0,0.00049589,120]
[320916324,1711707078850,-1552.25,0.00049589,120]
[320916325,1711707078862,-708.04,0.00049589,120]
[320916326,1711707078872,-1123.35,0.00049589,120]
[320916327,1711707078882,-1154.17,0.00049589,120]
[320916328,1711707078892,-500.0,0.00049589,120]
[320916329,1711707078903,-500.0,0.00049589,120]
[320916330,1711707078912,-500.0,0.00049589,120]
[320916331,1711707078922,-765.28,0.00049589,120]
[320916332,1711707078931,-507.75913462,0.00049589,120]
[320916333,1711707078941,-500.0,0.00049589,120]
[320916334,1711707078951,-3507.52,0.00049589,120]
[320916335,1711707078960,-500.0,0.00049589,120]
[320916336,1711707078970,-1463.06,0.00049589,120]
[320916337,1711707078979,-7619.28,0.00049589,120]
[320916338,1711707078988,-500.0,0.00049589,120]
[320916339,1711707078998,-500.0,0.00049589,120]
[320916340,1711707079006,-500.0,0.00049589,120]
[320916341,1711707079016,-1367.82,0.00049589,120]
[320916342,1711707079025,-613.99,0.00049589,120]
[320916343,1711707079034,-1455.5,0.00049589,120]
[320916344,1711707079043,-547.6,0.00049589,120]
[320916345,1711707079053,-530.58007336,0.00049589,120]
[320916346,1711707079063,-1145.85,0.00049589,120]
[320916347,1711707079072,-3472.6,0.00049589,120]
[320916348,1711707079082,-500.0,0.00049589,120]
[320916349,1711707079091,-1014.79,0.00049589,120]
[320916350,1711707079100,-500.0,0.00049589,120]
[320916351,1711707079112,-500.0,0.00049589,120]
[320916352,1711707079121,-500.0,0.00049589,120]
[320916353,1711707079131,-500.0,0.00049589,120]
[320916354,1711707079140,-1834.53,0.00049589,120]
[320916355,1711707079149,-1073.63,0.00049589,120]
[320916356,1711707079159,-500.0,0.00049589,120]
[320916357,1711707079168,-2108.68,0.00049589,120]
[320916358,1711707079178,-500.0,0.00049589,120]
[320916359,1711707079187,-12623.99,0.00049589,120]
[320916360,1711707079197,-1236.06,0.00049589,120]
[320916361,1711707079206,-1337.66,0.00049589,120]
[320916362,1711707079215,-500.0,0.00049589,120]
[320916363,1711707079225,-500.0,0.00049589,120]
[320916364,1711707079234,-500.0,0.00049589,120]
[320916365,1711707079243,-500.0,0.00049589,120]
[320916366,1711707079254,-500.0,0.00049589,120]
[320916367,1711707079264,-513.36,0.00049589,120]
[320916368,1711707079275,-710.94,0.00049589,120]
[320916369,1711707079286,-1108.55,0.00049589,120]
[320916370,1711707079297,-500.0,0.00049589,120]
[320916371,1711707079308,-500.0,0.00049589,120]
[320916372,1711707079319,-537.69181935,0.00049589,120]
[320916373,1711707079329,-500.0,0.00049589,120]
[320916374,1711707079340,-500.0,0.00049589,120]